Cogmind - Beta 11 X5 @@@ ROGUE MODE // 2021.07.03 @ 22:29:09 Player: Exp. Geonium Core Result: Destroyed by 8R-AWN with 8R-AWN's Boregun Performance ------------- Evolutions (1) 500 Regions Visited (5) 1000 Robots Destroyed (23) 115 Value Destroyed (553) 553 Prototype IDs (25) 500 Alien Tech Used (0) 0 Bonus (192) 192 TOTAL SCORE: 2860 Bonus ------- Aligned with FarCom 300 Friendly Fire -108 Cogmind --------- Core Integrity 0/400 Matter 280/300 Energy 28/100 System Corruption 0% Temperature Cool (8) Movement Core (3500) Ox69 Location -9/Exiles Parts ------- > --- POWER (1) -------- (None) > --- PROPULSION (4) --- (None) > --- UTILITY (2) ------ Humpback > --- WEAPON (2) ------- Guided Plasma Cannon > --- INVENTORY (35) --- Minigun Peak State ------------ > --- POWER ------------ Deuterium Engine > --- PROPULSION ------- Light Treads Armored Treads Aluminum Leg Aluminum Leg > --- UTILITY ---------- Large Storage Unit > --- WEAPON ----------- Firepult > --- INVENTORY -------- Nuclear Core Nuclear Core Light Fission Core Heat Sink Experimental Sensor Array Melee Analysis Suite Melee Analysis Suite Melee Analysis Suite Melee Analysis Suite Heavy Armor Plating Splice Drone Bay Minigun [Rating: 34] Favorites ----------- Power Deuterium Engine Engine Deuterium Engine Propulsion Aluminum Leg Treads Light Treads Leg Aluminum Leg Utility Large Storage Unit Device Splice Drone Bay Storage Large Storage Unit Protection Heavy Armor Plating Weapon Flak Cannon Energy Gun Pulse Rifle Energy Cannon Heavy Particle Cannon Ballistic Gun Minigun Ballistic Cannon Flak Cannon Special Melee Weapon Improved Datajack Build | -11 -10 -10 -9 -9 -9 ------- Run | Scr Mat Min Mat Min Exi Slots Evolved 2 | . . . 2 . . Power . | . . . . . . Propulsion 2 | . . . 2 . . Utility . | . . . . . . Weapon . | . . . . . . Parts Attached 37 | 2 . 6 12 4 13 Power 2 | . . 1 1 . . Engine 2 | . . 1 1 . . Core . | . . . . . . Reactor . | . . . . . . Propulsion 9 | 2 . 1 4 2 . Treads 7 | 2 . 1 4 . . Leg 2 | . . . . 2 . Wheel . | . . . . . . Hover . | . . . . . . Flight . | . . . . . . Utility 14 | . . 1 5 2 6 Device 5 | . . . 2 2 1 Storage 5 | . . . 2 . 3 Processor . | . . . . . . Hackware . | . . . . . . Protection 4 | . . 1 1 . 2 Artifact . | . . . . . . Weapon 12 | . . 3 2 . 7 Energy Gun 2 | . . 1 1 . . Energy Cannon 5 | . . . 1 . 4 Ballistic Gun 2 | . . . . . 2 Ballistic Cannon 2 | . . 1 . . 1 Launcher . | . . . . . . Special Weapon . | . . . . . . Impact Weapon . | . . . . . . Slashing Weapon . | . . . . . . Piercing Weapon . | . . . . . . Special Melee Weapon 1 | . . 1 . . . Unidentified Prototypes 2 | . . . 1 1 . Parts Lost 13 | . 1 . 4 2 6 Power 1 | . . . . . 1 Propulsion 9 | . 1 . 2 2 4 Utility 2 | . . . 2 . . Weapon 1 | . . . . . 1 Highest Loss Streak 6 | . 1 . 3 2 6 Average Slot Usage (%) 73 | . 26 68 88 89 67 Engine 10 | . . 11 11 11 10 Treads 25 | . 26 27 39 22 20 Leg 14 | . . . . 20 20 Device 1 | . . . 2 2 . Storage 9 | . . . 7 11 10 Protection 2 | . . 12 5 . . Energy Cannon 4 | . . . 7 11 2 Ballistic Cannon 5 | . . 12 11 11 2 Naked Turns 24 | . . . . . 24 Heaviest Build 209 | . . 29 48 49 209 Greatest Support 83 | 40 40 40 83 60 40 Greatest Overweight (x) 5 | . . . 1 1 5 Average Overweight (x) . | . . . . . 1 Largest Inventory Capacity 35 | 5 5 5 15 15 35 Average Capacity 17 | 5 5 5 10 15 23 Most Carried 16 | 2 2 5 8 10 16 Average Carried 10 | 1 2 3 6 9 13 Final Capacity 35 | 5 5 5 15 15 35 Final Carried 10 | 2 2 5 8 10 1 Class Distribution -------------------- 70% | Mutant 27% | Hauler-Mutant Dominant Class ---------------- Mutant | -10/Materials Mutant | -10/Mines Mutant | -9/Materials Mutant | -9/Mines Mutant | -9/Exiles Resources | -11 -10 -10 -9 -9 -9 ----------- Run | Scr Mat Min Mat Min Exi Matter Collected 829 | 204 . 89 294 125 117 Remotely . | . . . . . . Salvage Created 606 | . . 79 348 165 14 Parts 37 | . . 2 24 11 . Haulers Intercepted . | . . . . . . Recyclers Shooed 4 | . . . 1 3 . Parts Field Recycled . | . . . . . . Retrieved Matter . | . . . . . . Parts Self-Destructed . | . . . . . . Prevented . | . . . . . . Kills | -11 -10 -10 -9 -9 -9 ------- Run | Scr Mat Min Mat Min Exi Combat Hostiles Destroyed 21 | . . 2 13 5 1 Guns 2 | . . 2 . . . Cannons 18 | . . . 13 5 . AOE 1 | . . . . . 1 Classes Destroyed 6 | . . 1 3 1 1 Builder 1 | . . . . 1 . Recycler 2 | . . . 2 . . Swarmer 8 | . . . 8 . . Grunt 10 | . . 2 3 5 . Sentry 2 | . . . 2 . . Assembled 1 | . . . . . 1 Best Kill Streak 5 | . . 2 5 4 1 Combat Bots Only 4 | . . 2 4 3 1 Max Kills in Single Turn 2 | . . 1 2 2 1 Gunslinging . | . . . . . . Exploded 1 | . . . . . 1 Melee . | . . . . . . Uniques/NPCs Destroyed . | . . . . . . Combat | -11 -10 -10 -9 -9 -9 -------- Run | Scr Mat Min Mat Min Exi Damage Taken 2578 | . 346 55 630 274 1273 Core 509 | . 93 . 89 47 280 Absorbed by Shields . | . . . . . . Core Remaining (%) 81 | 100 . 62 . . . Volleys Fired 64 | . . 3 33 18 10 Largest 2 | . . 2 2 2 2 Hottest 250 | . . 107 119 119 250 Shots Fired 73 | . . 6 34 21 12 Gun 6 | . . 3 . . 3 Cannon 67 | . . 3 34 21 9 Launcher . | . . . . . . Special . | . . . . . . Kinetic 59 | . . 3 33 18 5 Thermal 14 | . . 3 1 3 7 Explosive . | . . . . . . Electromagnetic . | . . . . . . Robot Hit Streak 13 | . . 4 13 6 9 Robot Miss Streak 12 | . . 1 12 6 7 Penetration Max . | . . . . . . Secondary Targets . | . . . . . . Shots Hit Robots 61 | . . 3 32 18 8 Core Hits 69 | . . 3 38 22 6 Critical Kills . | . . . . . . Critical Parts Destroyed . | . . . . . . Critical Strikes . | . . . . . . Melee Attacks . | . . . . . . Impact . | . . . . . . Slashing . | . . . . . . Piercing . | . . . . . . Sneak Attacks . | . . . . . . Combat Hostiles . | . . . . . . Follow-up Attacks . | . . . . . . Damage Inflicted 1394 | . . 43 577 384 390 Guns 73 | . . 36 . . 37 Cannons 1218 | . . 7 574 384 253 Explosions 100 | . . . . . 100 Melee . | . . . . . . Ramming 3 | . . . 3 . . Kinetic 972 | . . 7 549 334 82 Thermal 419 | . . 36 25 50 308 Explosive . | . . . . . . Electromagnetic . | . . . . . . Impact . | . . . . . . Slashing . | . . . . . . Piercing . | . . . . . . Highest Corruption . | . . . . . . Average Corruption . | . . . . . . Corruption Purged . | . . . . . . Overload Shots . | . . . . . . Overflow Damage . | . . . . . . Projectiles . | . . . . . . Explosions . | . . . . . . Melee . | . . . . . . Knockbacks 26 | . . 1 12 10 3 Impact . | . . . . . . Kinetic 21 | . . 1 9 9 2 Secondary 5 | . . . 3 1 1 Self-Inflicted Damage 26 | . . . . . 26 Shots 4 | . . . . . 4 Rammed 1 | . . . 1 . . Targets Rammed 1 | . . . 1 . . Kicked . | . . . . . . Crushed . | . . . . . . Highest Temperature 384 | . . 213 66 282 384 Average Temperature 111 | . . 110 20 171 144 Received Heat Transfer 628 | . 189 30 201 168 40 Effects 4 | . . 1 . 1 2 Energy Bleed 4 | . . 1 . 1 2 Siege Activations . | . . . . . . Robots Corrupted . | . . . . . . Combat Hostiles . | . . . . . . Parts Fried . | . . . . . . Impact Corruptions . | . . . . . . Robots Melted . | . . . . . . Combat Hostiles . | . . . . . . Parts Melted . | . . . . . . Heat Transferred 685 | . . 74 37 74 500 Parts Sabotaged . | . . . . . . Parts Stolen . | . . . . . . Parts Stripped . | . . . . . . Power Chain Reactions . | . . . . . . Missiles Intercepted . | . . . . . . Alert | -11 -10 -10 -9 -9 -9 ------- Run | Scr Mat Min Mat Min Exi Peak Influence 250 | . . 65 250 207 . Initial 87 | . . . 25 87 . Average 117 | . . 46 141 157 . Maximum Alert Level 1 | . . . 1 1 . Low Security (%) 85 | 100 100 100 84 75 . Level 1 14 | . . . 15 24 . Level 2 . | . . . . . . Level 3 . | . . . . . . Level 4 . | . . . . . . Level 5 . | . . . . . . High Security . | . . . . . . Max Security . | . . . . . . Squads Dispatched 4 | . . 1 3 . . Investigation 2 | . . 1 1 . . Extermination . | . . . . . . Reinforcement 2 | . . . 2 . . Assault . | . . . . . . Garrison . | . . . . . . Intercept . | . . . . . . Construction Impeded . | . . . . . . Haulers Reinforced . | . . . . . . Cargo Convoy Interrupts . | . . . . . . Stealth | -11 -10 -10 -9 -9 -9 --------- Run | Scr Mat Min Mat Min Exi Distress Signals 5 | . . . 5 . . Communications Jammed . | . . . . . . Distress Signals . | . . . . . . Times Spotted 46 | . 2 2 28 5 9 Peak Tracking Total 9 | . 2 2 5 3 9 Tactical Retreats 1 | . . . 1 . . Traps | -11 -10 -10 -9 -9 -9 ------- Run | Scr Mat Min Mat Min Exi Traps Triggered . | . . . . . . Indirectly . | . . . . . . Trap Hack Attempts . | . . . . . . Triggered . | . . . . . . Disarmed . | . . . . . . Reprogrammed . | . . . . . . Reused . | . . . . . . Traps Extracted . | . . . . . . Installed . | . . . . . . Triggered . | . . . . . . Exploded 3 | . . . . . 3 Machines | -11 -10 -10 -9 -9 -9 ---------- Run | Scr Mat Min Mat Min Exi Machines Disabled 4 | . . . . . 4 Max in Single Turn 3 | . . . . . 3 Machines Sabotaged . | . . . . . . Garrisons Compromised . | . . . . . . Overloaded Fab Kills . | . . . . . . Fab Network Shutdowns . | . . . . . . Hacking | -11 -10 -10 -9 -9 -9 --------- Run | Scr Mat Min Mat Min Exi Machines Accessed 5 | . . 1 2 1 1 Terminals 2 | . . . 2 . . Fabricators . | . . . . . . Repair Stations . | . . . . . . Recycling Units . | . . . . . . Scanalyzers . | . . . . . . Garrison Access . | . . . . . . Total Hacks 7 | . . 1 4 1 1 Successful 4 | . . 1 1 1 1 Failed 3 | . . . 3 . . Catastrophic 1 | . . . 1 . . Database Lockouts . | . . . . . . Manual 2 | . . . 1 . 1 Terminals 4 | . . . 4 . . Fabricators . | . . . . . . Repair Stations . | . . . . . . Recycling Units . | . . . . . . Scanalyzers . | . . . . . . Garrison Access . | . . . . . . Terminal Hacks 4 | . . 1 1 1 1 Open Door 2 | . . 1 . 1 . Branch Access Points 1 | . . . 1 . . EX-Prototype ID Bank 1 | . . . . . 1 Fabricator Hacks . | . . . . . . Repair Station Hacks . | . . . . . . Recycling Unit Hacks . | . . . . . . Scanalyzer . | . . . . . . Garrison Access Hacks . | . . . . . . Unauthorized Hacks . | . . . . . . Terminals . | . . . . . . Fabricators . | . . . . . . Repair Stations . | . . . . . . Recycling Units . | . . . . . . Scanalyzers . | . . . . . . Garrison Access . | . . . . . . Data Cores Recovered . | . . . . . . Used . | . . . . . . Hacking Detections 2 | . . . 2 . . Full Trace Events 1 | . . . 1 . . Feedback Events . | . . . . . . Feedback Blocked . | . . . . . . Robot Schematics Acquired . | . . . . . . Robots Built . | . . . . . . Matter . | . . . . . . Time . | . . . . . . Total Robot Build Rating . | . . . . . . Part Schematics Acquired . | . . . . . . Parts Built . | . . . . . . Matter . | . . . . . . Time . | . . . . . . Total Part Build Rating . | . . . . . . Parts Repaired . | . . . . . . Time . | . . . . . . Parts Recycled . | . . . . . . Recycled Matter . | . . . . . . Retrieved Matter . | . . . . . . Retrieved Components . | . . . . . . Parts Scanalyzed . | . . . . . . Part Schematics Acquired . | . . . . . . Parts Damaged . | . . . . . . Bothacking | -11 -10 -10 -9 -9 -9 ------------ Run | Scr Mat Min Mat Min Exi Used RIF Installer . | . . . . . . Robots Hacked . | . . . . . . Non-combat . | . . . . . . Combat . | . . . . . . Robot Hacks Applied . | . . . . . . Relay Couplers Released . | . . . . . . Robots Rewired . | . . . . . . Allies Hacked . | . . . . . . Hacks Repelled . | . . . . . . Allies | -11 -10 -10 -9 -9 -9 -------- Run | Scr Mat Min Mat Min Exi Total Allies . | . . . . . . Largest Group . | . . . . . . Highest-Rated Group . | . . . . . . Highest-Rated Ally . | . . . . . . Total Orders . | . . . . . . Ally Attacks 30 | . . . . . 30 Total Damage 787 | . . . . . 787 Kills 4 | . . . . . 4 Allies Corrupted . | . . . . . . Allies Melted . | . . . . . . Turrets Deployed 3 | . . . . . 3 Intel | -11 -10 -10 -9 -9 -9 ------- Run | Scr Mat Min Mat Min Exi Robot Analysis Total . | . . . . . . Derelict Logs Recovered 1 | . . 1 . . . Drone Launches 17 | . . . . . 17 Drone Recoveries 14 | . . . . . 14 Exploration | -11 -10 -10 -9 -9 -9 ------------- Run | Scr Mat Min Mat Min Exi Turns Passed 3229 | 62 71 213 683 346 1854 Spaces Moved 1262 | 39 45 114 334 114 616 Core 45 | 4 . . . . 41 Treads 1217 | 35 45 114 334 114 575 Legs . | . . . . . . Wheels . | . . . . . . Hover . | . . . . . . Flight . | . . . . . . Fastest Speed 50 | 50 160 160 162 163 50 Average Speed 229 | 148 160 164 170 263 277 Slowest Speed 665 | 160 160 165 265 265 665 Overloaded Moves . | . . . . . . Propulsion Burnouts . | . . . . . . Robots Hopped . | . . . . . . Cave-ins Triggered . | . . . . . . Exploration Rate (%) 24 | 3 17 26 36 16 51 Regions Visited 5 Branch Regions 3 Pre-discovered Areas 1 | . . 1 . . . Known Exits Taken 1 | . . . 1 . . Unknown Exits Taken 4 | 1 1 1 . 1 . Scrap Searched . | . . . . . . Spaces Dug . | . . . . . . Terrain Destroyed 20 | . . . . 1 19 Melee . | . . . . . . Projectile 2 | . . . . 1 1 AOE 18 | . . . . . 18 Terrain Rammed . | . . . . . . Walls Destroyed . | . . . . . . Machines Disabled . | . . . . . . Actions | -11 -10 -10 -9 -9 -9 --------- Run | Scr Mat Min Mat Min Exi Total 1530 | 42 44 132 414 140 758 Wait 96 | . . 6 24 . 66 Move 1257 | 38 44 113 333 113 616 Hop . | . . . . . . Pick Up 45 | 2 . 3 5 2 33 Fast Attach 23 | 2 . 4 7 4 6 Attach 11 | . . 1 3 . 7 Detach 5 | . . 1 1 1 2 Swap 3 | . . 1 2 . . Drop 25 | . . . 5 2 18 Fire 64 | . . 3 33 18 10 Melee . | . . . . . . Ram . | . . . . . . Kick . | . . . . . . Crush 1 | . . . 1 . . Escape Stasis . | . . . . . . Rewire . | . . . . . . Trap . | . . . . . . Miscellaneous . | . . . . . . Route ------- -11/Scrapyard -10/Materials -10/Mines -9/Materials (discovered 2 exits: *Min x2) -9/Mines (discovered 2 exits: [*Mat] / *Exi) -9/Exiles (discovered 1 exit: [*Min]) History --------- Turn | Location | Event 5 | -11/Scrapyard | Discovered new exit (range 15) 63 | -11/Scrapyard | Entered Materials 119 | -10/Materials | Discovered new exit (range 6) 134 | -10/Materials | Entered Mines 140 | -10/Mines | Met a Derelict shopkeep closing up shop 266 | -10/Mines | Found a damaged Exp. Sensor Array with a note attached 270 | -10/Mines | Found Prototype Device 312 | -10/Mines | Build established: Mutant 333 | -10/Mines | Discovered new exit (range 10) 347 | -10/Mines | Entered Materials 347 | -9/Materials | Evolved 2 slots: Propulsion x2 532 | -9/Materials | Identified Exp. Sensor Array 834 | -9/Materials | Lost 3 parts (2n1u) 980 | -9/Materials | Identified exit to Mines 1030 | -9/Materials | Entered Mines 1133 | -9/Mines | Found the Drone Emporium 1143 | -9/Mines | Found Prototype Device 1163 | -9/Mines | Identified Splice Drone Bay 1227 | -9/Mines | Discovered new exit (range 4) 1366 | -9/Mines | Deemed a non-threat by the Exiles lab entrance 1366 | -9/Mines | Discovered new exit (range 5) 1376 | -9/Mines | Entered Exiles 1446 | -9/Exiles | Met 8R-AWN 1491 | -9/Exiles | Met EX-HEX 1565 | -9/Exiles | Met EX-BIN 1597 | -9/Exiles | Aligned with FarCom system 1599 | -9/Exiles | Given EX-Vault access code 1668 | -9/Exiles | Opened EX-Vault 1683 | -9/Exiles | Found Firepult 1720 | -9/Exiles | Warned to stay clear of 0b10 Research branches 1945 | -9/Exiles | Found Gui. Plasma Cannon 1956 | -9/Exiles | Found Deploy-a-Sentry 1959 | -9/Exiles | Found Deploy-a-Sentry 1961 | -9/Exiles | Found Deploy-a-Sentry 2495 | -9/Exiles | Build established: Hauler-Mutant 3100 | -9/Exiles | Attacked by the Exiles 3105 | -9/Exiles | DAS Turret deployed 3107 | -9/Exiles | DAS Turret deployed 3111 | -9/Exiles | DAS Turret deployed 3122 | -9/Exiles | Core integrity fell below 50% 3144 | -9/Exiles | Discovered new exit (range 14) 3166 | -9/Exiles | Lost 6 parts (1p4n1w) 3177 | -9/Exiles | Core integrity fell below 20% 3230 | -9/Exiles | Destroyed by 8R-AWN with 8R-AWN's Boregun Last Messages --------------- 03205_ Acquired Humpback. 03207_ Acquired Gui. Plasma Cannon. 03213_ Penetrated by HV Slug. 03213_ HV Slug penetrates Earth. 03213_ HV Slug penetrates Wall. 03213_ HV Slug penetrates Earth. 03217_ Penetrated by HV Slug. 03217_ HV Slug penetrates Earth. 03217_ HV Slug penetrates Wall. 03222_ Penetrated by HV Slug. 03222_ HV Slug penetrates Earth. 03222_ Penetrated by HV Slug. 03222_ HV Slug penetrates Earth. 03226_ HV Slug penetrates Wall. 03226_ HV Slug penetrates Earth. 03226_ Penetrated by HV Slug. 03226_ HV Slug penetrates Earth. 03230_ Penetrated by HV Slug. 03230_ HV Slug penetrates Earth. 03230_ Penetrated by HV Slug. Map ----- +----------------------------------------------------+ | ""#??????????????????????????????????????????????? | | ""#??????????????????????????????????????????????? | | ""#??????????????????????????????????????????????? | | ""#??????????????????????????????????????????????? | | ""#??????????????????????????????????????????????? | | ""#??????????????????????????????????????????????? | | ""#??????????????????????????????????????????????? | | """??????????????????????????????????????????????? | | ""#??????????????????????????????????????????????? | | """??????????????????????????????????????????????? | | #??????????????????????????????????????????????? | | ""#??????????????????????????????????????????????? | | ###????????????????????????????????????????????### | | ?????????????????????????????????????????????## # | | ?????????????????????????????????????????????" # | | ????????????????????????????????????????????# < # | | #########???????????????????????????????????" # | | """"""""##??????????????????????????????????" # | | """ """"##????????????????????????????????#" #? | | "" " #?????????#######????????????????" ## | | " """#?????# ??#%%# ##??????????????# # | | " "#??????# ## ;#?????????????## # | | " "##??????# ; ;#?????????????#" # | | ""###?????# ! #??????????####! #?? | | """#????# # ;##????????## ] #?? | | "#????##;%%!%@];##???????#"# ##?? | | ##??## ########## #??? | | ##?#; %% #""""## ##??? | | ### g ##??? | | % ;; #??? | | ##;# ##?? | | "##; ""##;# ### | | % "############;## # | | % % ;####??????????## # | | ####???????????????# "# | | " %##??????????????????## ######## | | """ "#????????????????????###??????### | | ""#" ##??????????????????????????????#" | | """##""" ##???????????????????????????????#### | | ""###########???????????????????????????????????# | | ###?????????????????????????????????????????????## | | ?????????????????????????????????????????????????# | | ?????????????????????????????????????????????????? | | ?????????????????????????????????????????????????? | | ?????????????????????????????????????????????????? | | ?????????????????????????????????????????????????? | | ?????????????????????????????????????????????????? | | ?????????????????????????????????????????????????? | | ?????????????????????????????????????????????????? | | ?????????????????????????????????????????????????? | +----------------------------------------------------+ Best States ------------- Heat Dissipation 38 Energy Generation 14 Energy Capacity 275 Matter Stores 300 Matter Capacity 300 Sight Range 16 Robot Scan Range 20 Terrain Scan Density 10 Armor Coverage 600 Evasion (%) 50 Recoil Reduction 4 Item Schematics ----------------- None Robot Schematics ------------------ None Fabricated ------------ Nothing Alien Tech Used ----------------- None Achievements -------------- None Challenges ------------ None Game ------ Seed AbsorptionThrusterBay Manual? 0 Play Time 00:23:33 Cumulative 135.3 hours Start 2021.07.03 @ 22:03:16 End 2021.07.03 @ 22:29:09 Sessions 1 Manual Loads 0 Difficulty Rogue Special Mode None Game No. 203 Rogue 203 Adventurer 0 Explorer 0 Win Type - Total 6 Types 5/0/0/1/0/0/0/0/0 Lore% 51 Gallery% 74 Achievement% 59 Wizard Run 0 Options --------- ASCII 0 Keyboard 0 Movement Mouse Keybinds 0 Fullscreen 1 Font 18/Terminus Map View 76x50 Tactical HUD 1 Map Filters NONE Filters NONE Steam 1 RUN: aa32d302-f23d-46d1-a3c9-e5237bcdf70b